Workbook

Sheet 1. Forside
A1: Frederikssund Spildevand A/S
D8: Bilag A
D13: Indholdsfortegnelse
C16: Fane nr. 2 | D16: Samlet prisloft
C17: Fane nr. 3 | D17: Driftsomkostninger
C18: Fane nr. 4 | D18: Historiske investeringer
C19: Fane nr. 5 | D19: Gennemførte investeringer
C20: Fane nr. 6 | D20: Korrektion investeringer
C21: Fane nr. 7 | D21: Planlagte investeringer
C22: Fane nr. 8 | D22: 1:1 omkostninger
C23: Fane nr. 9 | D23: Miljø- og servicemål
C24: Fane nr. 10 | D24: Klimatilpasning
C25: Fane nr. 11 | D25: Nettofinansielle poster
C26: Fane nr. 12 | D26: Over- eller underdækning
C27: Fane nr. 13 | D27: Kontrol med indtægtsrammen og oversigt over ekstraordinære effektiviseringsgevinster

Sheet 2. Samlet prisloft
A1: ='1. Forside'!A1 -> Frederikssund Spildevand A/S
B4: Fane 2. Samlet prisloft for 2015
B6: Driftsomkostninger
B7: Driftsomkostninger i prisloftet for 2014 | C7: ='3. Driftsomkostninger'!C19 -> 40716296.52 | D7: kr.
B8: Bortfald af væsentlige omkostninger | C8: =-'3. Driftsomkostninger'!C24 -> 0 | D8: kr.
B9: Korrektion for prisudviklingen 2014-2015 | C9: ='3. Driftsomkostninger'!C30 -> 32573.03722 | D9: kr.
B10: Forhøjelse til effektivt niveau iht. benchmarkingen | C10: ='3. Driftsomkostninger'!C36 -> 0 | D10: kr.
B11: Korrektion for generelt effektiviseringskrav | C11: =-'3. Driftsomkostninger'!C42 -> -154425.0394 | D11: kr.
B12: Korrektion for individuelt effektiviseringskrav | C12: =-'3. Driftsomkostninger'!C51 -> -1467915.289 | D12: kr.
B13: Driftsomkostninger i alt | C13: =SUM(C7:C12) -> 39126529.23 | D13: kr. | E13: =C13 -> 39126529.23 | F13: kr.
B14: Investeringer
B15: Tillæg for historiske investeringer | C15: ='4. Historiske investeringer'!C9 -> 35855871.07 | D15: kr.
B16: Tillæg for gennemførte investeringer i 2011-2013 | C16: ='5. Gennemførte investeringer'!F44 -> 6110927.983 | D16: kr.
B17: Korrektion af tillæg for planlagte investeringer vedrørende 2013 | C17: ='6. Korrektion investeringer'!C10 -> -1284511.507 | D17: kr.
B18: Tillæg for planlagte investeringer i 2014 og 2015 | C18: ='7. Planlagte investeringer'!F54 -> 1941166.667 | D18: kr.
B19: Investeringstillæg i alt | C19: =SUM(C15:C18) -> 42623454.21 | D19: kr. | E19: =C19 -> 42623454.21 | F19: kr.
B20: Øvrige omkostninger mv.
B21: Tillæg for 1:1 omkostninger i 2015 | C21: ='8. 1-1 omkostninger'!C10 -> 3593000 | D21: kr.
B22: Tillæg vedr. revisorerklæringer og DANVA/FVD-kontingent | C22: ='8. 1-1 omkostninger'!C18 -> 167800 | D22: kr.
B23: Korrektion ift. faktiske 1:1 omkostninger i 2013 | C23: ='8. 1-1 omkostninger'!C24 -> 161164 | D23: kr.
B24: Tillæg for driftsomkostninger til miljø- og servicemål i 2015 | C24: ='9. Miljø- og servicemål'!C9 -> 113000 | D24: kr.
B25: Korrektion ift. faktiske driftsomkostninger til miljø- og servicemål i 2013 | C25: ='9. Miljø- og servicemål'!C16 -> 0 | D25: kr.
B26: Tillæg for driftsomkostninger til medfinansiering af klimatilpasningsprojekter i 2015 | C26: ='10. Klimatilpasning'!C9 -> 0 | D26: kr.
B27: Korrektion ift. faktiske omkostninger til medfinansiering af klimatilpasningsprojekter i 2013 | C27: ='10. Klimatilpasning'!C16 -> 0 | D27: kr.
B28: Tillæg/fradrag for nettofinansielle poster i 2015 | C28: ='11. Nettofinansielle poster'!C9 -> 1270000 | D28: kr.
B29: Korrektion ift. faktiske nettofinansielle poster i 2013 | C29: ='11. Nettofinansielle poster'!C16 -> -75431 | D29: kr.
B30: Øvrige omkostninger mv. i alt | C30: =SUM(C21:C29) -> 5229533 | D30: kr. | E30: =C30 -> 5229533 | F30: kr.
B31: Historisk over- eller underdækning
B32: Tillæg/fradrag for over- eller underdækning til og med 2010 | C32: ='12. Over- eller underdækning'!C11 -> 0 | D32: kr. | E32: =C32 -> 0 | F32: kr.
B33: Korrektion i forhold til tidligere indtægtsramme
B34: Korrektion for overholdelse af indtægtsramme i prisloft 2013 | C34: ='13. Kontrol med indtægtsrammen'!E27 -> 385284.7434 | D34: kr. | E34: =C34 -> 385284.7434 | F34: kr.
B35: Samlet prisloft
B36: Indtægtsramme i 2015 | E36: =SUM(E13:E34) -> 87364801.19 | F36: kr.
B37: Debiteret vandmængde i 2013 | E37: 1974774 | F37: m3
B38: Prisloft 2015 | E38: =E36/E37 -> 44.24040482 | F38: kr./m3

Sheet 3. Driftsomkostninger
A1: ='1. Forside'!A1 -> Frederikssund Spildevand A/S
B4: Fane 3. Driftsomkostninger
B6: Driftsomkostningerne i prisloftet for 2014
B7: Korrigerede driftsomkostninger i prisloftet for 2013 (DOiPL 2013) inkl. midlertidige tillæg | C7: 41767242.88 | D7: kr.
B8: Prisfremskrivning 1,5 pct. | C8: =0.015*SUM(C7:C7) -> 626508.6432 | D8: kr.
B9: Generelt effektiviseringskrav (0 pct.) | C9: 0 | D9: kr.
B10: Individuelt effektiviseringskrav | C10: -1677455 | D10: kr.
B11: Tillæg i henhold til § 8, stk. 2, pkt. 1 | C11: 1391640 | D11: kr.
B12: Driftsomkostningerne i prisloftet for 2014 (DOiPL 2014) | C12: =SUM(C7:C11) -> 42107936.52 | D12: kr.
B15: Forskel i § 8, stk. 2, pkt. 1 - tillæg
B16: Godkendt tillæg i PL2014 prisfremskrevet til 2014-niveau | C16: 1391640 | D16: kr.
B17: Godkendt tillæg i PL2015 prisfremskrevet til 2014-niveau | C17: 0 | D17: kr.
B18: Forskel | C18: =C17-C16 -> -1391640 | D18: kr.
B19: Korrigerede driftsomkostnigner i prisloftet for 2014 | C19: =C12+C18 -> 40716296.52 | D19: kr.
B22: Korrektion for forventet bortfald af væsentlige omkostninger
B23: Selskabets indberettede bortfald af væsentlige omkostninger inden 2015 | C23: 0 | D23: kr.
B24: Korrektion for forventet bortfald | C24: =SUM(C23:C23) -> 0 | D24: kr.
B27: Korrektion for prisudviklingen fra 2014-2015
B28: Driftsomkostningerne i prisloftet for 2014 | C28: =C19-C24 -> 40716296.52 | D28: kr.
B29: Prisudvikling 2014 - 2015 | C29: 0.08 | D29: pct.
B30: Korrektion for prisudvikling | C30: =C28*(C29/100) -> 32573.03722 | D30: kr.
B33: Eventuel forhøjelse til effektivt niveau iht. benchmarkingen
B34: Selskabets effektive driftsomkostninger iht. benchmarkingen | C34: 24581658.54 | D34: kr.
B35: Selskabets pristalskorrigerede driftsomkostninger i 2015-niveau | C35: =C28+C30 -> 40748869.56 | D35: kr.
B36: Eventuel forhøjelse til effektivt niveau | C36: =IF(C35>C34,0,C34-C35) -> 0 | D36: kr.
B39: Korrektion for generelt effektiviseringskrav
B40: Driftsomkostningerne i prisloftet for 2014 ekskl. midlertidige tillæg | C40: 35096599.86 | D40: kr.
B41: Generelt effektiviseringskrav | C41: 0.44 | D41: pct.
B42: Endeligt generelt effektiviseringskrav | C42: =C40*(C41/100) -> 154425.0394 | D42: kr.
B45: Korrektion for individuelt effektiviseringskrav
B46: Rå effektiviseringspotentiale | C46: 10532489.62 | D46: kr.
B47: Effektiviseringspotentiale efter eventuel korrektion for særlige forhold | C47: 10514941.32 | D47: kr.
B48: Effektiviseringspotentiale efter forsigtighedshensyn | C48: 5871661.156 | D48: kr.
B49: Effektiviseringspotentiale efter eventuel korrektion for sammensætning af signifikante costdrivere | C49: 5871661.156 | D49: kr.
B50: Umiddelbart effektiviseringskrav | C50: =C49/4 -> 1467915.289 | D50: kr.
B51: Endeligt individuelt effektiviseringskrav | C51: =IF(C50>0.05*C40,0.05*C40,IF(C50<0.01*C40,0,C50)) -> 1467915.289 | D51: kr.

Sheet 4. Historiske investeringer
A1: ='3. Driftsomkostninger'!A1 -> Frederikssund Spildevand A/S
B4: Fane 4. Historiske investeringer
B6: Tillæg for historiske investeringer
B7: Værdi af selskabets materielle anlægsaktiver pr. 1. januar 2010 | C7: 1513062707 | D7: kr.
B8: Den årlige standardafskrivning på de materielle anlægsaktiver iht. POLKA | C8: 35855871.07 | D8: kr.
B9: Tillæg i alt i 2015 | C9: =C8 -> 35855871.07 | D9: kr.

Sheet 5. Gennemførte investeringer
A1: ='4. Historiske investeringer'!A1 -> Frederikssund Spildevand A/S
B4: Fane 5. Gennemførte investeringer i 2010 - 2013
B6: Tillæg for gennemførte investeringer i 2013
B7: Beskrivelse af investeringen | C7: Årstal | D7: Std. levetid (år) | E7: Anskaffelses-pris (kr.) | F7: Afskrivning
B8: Indløb med riste, SRO | C8: 2013 | D8: 10 | E8: 83333 | F8: =E8/D8 -> 8333.3 | G8: kr.
B9: Sand- og fedtfang, Kontruktioner | C9: 2013 | D9: 60 | E9: 138540 | F9: =E9/D9 -> 2309 | G9: kr.
B10: Sand- og fedtfang, SRO | C10: 2013 | D10: 10 | E10: 75123 | F10: 7512.3 | G10: kr.
B11: Beluftningstanke, Mek/EL | C11: 2013 | D11: 20 | E11: 1174942 | F11: 58747.1 | G11: kr.
B12: Beluftningstanke, SRO | C12: 2013 | D12: 10 | E12: 555112 | F12: 55511.2 | G12: kr.
B13: Slutafvanding, slam - højteknologisk (centrifuger), Mek/El | C13: 2013 | D13: 20 | E13: 179383 | F13: 8969.15 | G13: kr.
B14: Slutafvanding, slam - højteknologisk (centrifuger), SRO | C14: 2013 | D14: 10 | E14: 123478 | F14: 12347.8 | G14: kr.
B15: Slutdisponering, slam - lavteknologisk (slammineralisering), Mek/EL | C15: 2013 | D15: 20 | E15: 50375 | F15: 2518.75 | G15: kr.
B16: Ledningsnet = Ø 200 mm | C16: 2013 | D16: 75 | E16: 17978658 | F16: 239715.44 | G16: kr.
B17: Ø 200 mm < Ledningsnet = Ø 500 mm | C17: 2013 | D17: 75 | E17: 8950831 | F17: 119344.4133 | G17: kr.
B18: Ø 500 mm < Ledningsnet = Ø 800 mm | C18: 2013 | D18: 75 | E18: 1200000 | F18: 16000 | G18: kr.
B19: Ø 800 mm < Ledningsnet = Ø 1000 mm | C19: 2013 | D19: 75 | E19: 339277 | F19: 4523.693333 | G19: kr.
B20: Ledningsnet > Ø 1600 mm (rørbassiner og transportledninger) | C20: 2013 | D20: 75 | E20: 325000 | F20: 4333.333333 | G20: kr.
B21: Strømpeforing = Ø 200 mm | C21: 2013 | D21: 50 | E21: 409515 | F21: 8190.3 | G21: kr.
B22: Strømpeforing Ø 200 mm < Ledningsnet = Ø 500 mm | C22: 2013 | D22: 50 | E22: 100000 | F22: 2000 | G22: kr.
B23: Strømpeforing Ø 500 mm < Ledningsnet = Ø 800 mm | C23: 2013 | D23: 50 | E23: 336909 | F23: 6738.18 | G23: kr.
B24: Brønde | C24: 2013 | D24: 75 | E24: 5199827 | F24: 69331.02667 | G24: kr.
B25: Stik | C25: 2013 | D25: 75 | E25: 2343304 | F25: 31244.05333 | G25: kr.
B26: Pumpestationer i brønde (< 6,25 m2), Konstruktioner | C26: 2013 | D26: 50 | E26: 3390348 | F26: 67806.96 | G26: kr.
B27: Pumpestationer i brønde (< 6,25 m2), Mek/EL | C27: 2013 | D27: 20 | E27: 862972 | F27: 43148.6 | G27: kr.
B28: Pumpestationer i brønde (< 6,25 m2), SRO | C28: 2013 | D28: 10 | E28: 482507 | F28: 48250.7 | G28: kr.
B29: Pumpestationer m. overbygning (< 20 m2), Mek/EL | C29: 2013 | D29: 20 | E29: 276852 | F29: 13842.6 | G29: kr.
B30: Pumpestationer m. overbygning (< 20 m2), SRO | C30: 2013 | D30: 10 | E30: 56222 | F30: 5622.2 | G30: kr.
B31: Pumpeinstallation Miljøklasse A (100-300 l/s) - Mek/EL | C31: 2013 | D31: 20 | E31: 498000 | F31: 24900 | G31: kr.
B32: Pumpeinstallation Miljøklasse A (100-300 l/s) - SRO | C32: 2013 | D32: 10 | E32: 147892 | F32: 14789.2 | G32: kr.
B33: Pumpeinstallation Miljøklasse A (300-600 l/s) - SRO | C33: 2013 | D33: 10 | E33: 65370 | F33: 6537 | G33: kr.
B34: Jordbassin Klasse B | C34: 2013 | D34: 50 | E34: 7382835 | F34: 147656.7 | G34: kr.
B35: Indløb-/udløbsarrangement | C35: 2013 | D35: 75 | E35: 76915 | F35: 1025.533333 | G35: kr.
B36: Andre bygninger (tekniske installationer, målere mv.) | C36: 2013 | D36: 75 | E36: 1750067 | F36: 23334.22667 | G36: kr.
B37: Arbejdsplads | C37: 2013 | D37: 5 | E37: 32515 | F37: 6503 | G37: kr.
B38: Køretøjer, personbil | C38: 2013 | D38: 5 | E38: 350322 | F38: 70064.4 | G38: kr.
B39: Værksteder, garager | C39: 2013 | D39: 75 | E39: 290491 | F39: =E39/D39 -> 3873.213333 | G39: kr.
B40: Asfaltvej | C40: 2013 | D40: 75 | E40: 1452178 | F40: =E40/D40 -> 19362.37333 | G40: kr.
B41: Arbejdsplads | C41: 2013 | D41: 5 | E41: 1301360 | F41: 260272 | G41: kr.
B42: Tillæg for 2013 | F42: =SUM(F8:F41) -> 1414657.747 | G42: kr.
B43: Tillæg for 2010 - 2012 | F43: 4696270.237 | G43: kr.
B44: Samlet tillæg for gennemførte investeringer | F44: =F42+F43 -> 6110927.983 | G44: kr.

Sheet 6. Korrektion investeringer
A1: ='5. Gennemførte investeringer'!A1 -> Frederikssund Spildevand A/S
B4: Fane 6. Korrektion af tillæg for planlagte investeringer
B6: Korrektion af tillæg for planlagte investeringer vedr. 2013
B7: Tillæg for planlagte investeringer i 2013 i prisloft 2013 | C7: 2000267 | D7: kr.
B8: Tillæg for planlagte investeringer i 2013 i prisloft 2014 | C8: 2113560 | D8: kr.
B9: Selskabets faktiske afskrivninger på gennemførte investeringer i 2013 | C9: ='5. Gennemførte investeringer'!F42 -> 1414657.747 | D9: kr.
B10: Korrektion af tillæg for planlagte investeringer vedr. 2013 | C10: =C9-C7+C9-C8 -> -1284511.507 | D10: kr.

Sheet 7. Planlagte investeringer
A1: ='6. Korrektion investeringer'!A1 -> Frederikssund Spildevand A/S
B4: Fane 7. Planlagte investeringer
B6: Tillæg for planlagte investeringer i 2014 og 2015
B7: Beskrivelse af investeringen | C7: Årstal | D7: Std. levetid (år) | E7: Anskaffelses-pris (kr.) | F7: Afskrivning
B8: Indløb med riste, Mek/EL | C8: 2014 | D8: 20 | E8: 500000 | F8: =E8/D8 -> 25000 | G8: kr.
B9: Indløb med riste, Konstruktioner | C9: 2014 | D9: 60 | E9: 7000000 | F9: =E9/D9 -> 116666.6667 | G9: kr.
B10: Indløb med riste, SRO | C10: 2014 | D10: 10 | E10: 50000 | F10: =E10/D10 -> 5000 | G10: kr.
B11: Sand- og fedtfang, Kontruktioner | C11: 2014 | D11: 60 | E11: 5000000 | F11: =E11/D11 -> 83333.33333 | G11: kr.
B12: Sand- og fedtfang, SRO | C12: 2014 | D12: 10 | E12: 50000 | F12: 5000 | G12: kr.
B13: Sand- og fedtfang, Mek/EL | C13: 2014 | D13: 20 | E13: 500000 | F13: 25000 | G13: kr.
B14: Ledningsnet = Ø 200 mm | C14: 2014 | D14: 75 | E14: 20000000 | F14: 266666.6667 | G14: kr.
B15: Ø 200 mm < Ledningsnet = Ø 500 mm | C15: 2014 | D15: 75 | E15: 10000000 | F15: 133333.3333 | G15: kr.
B16: Ø 500 mm < Ledningsnet = Ø 800 mm | C16: 2014 | D16: 75 | E16: 1200000 | F16: 16000 | G16: kr.
B17: Ø 800 mm < Ledningsnet = Ø 1000 mm | C17: 2014 | D17: 75 | E17: 350000 | F17: 4666.666667 | G17: kr.
B18: Strømpeforing = Ø 200 mm | C18: 2014 | D18: 50 | E18: 400000 | F18: 8000 | G18: kr.
B19: Strømpeforing Ø 200 mm < Ledningsnet = Ø 500 mm | C19: 2014 | D19: 50 | E19: 100000 | F19: 2000 | G19: kr.
B20: Strømpeforing Ø 500 mm < Ledningsnet = Ø 800 mm | C20: 2014 | D20: 50 | E20: 350000 | F20: 7000 | G20: kr.
B21: Brønde | C21: 2014 | D21: 75 | E21: 6000000 | F21: 80000 | G21: kr.
B22: Stik | C22: 2014 | D22: 75 | E22: 2500000 | F22: 33333.33333 | G22: kr.
B23: Tryksatte minipumpestationer (husstandssystemer) | C23: 2014 | D23: 30 | E23: 500000 | F23: 16666.66667 | G23: kr.
B24: Pumpestationer i brønde (< 6,25 m2), Konstruktioner | C24: 2014 | D24: 50 | E24: 3500000 | F24: 70000 | G24: kr.
B25: Pumpestationer i brønde (< 6,25 m2), Mek/EL | C25: 2014 | D25: 20 | E25: 1000000 | F25: 50000 | G25: kr.
B26: Pumpestationer m. overbygning (< 20 m2), Mek/EL | C26: 2014 | D26: 20 | E26: 300000 | F26: 15000 | G26: kr.
B27: Pumpestationer m. overbygning (< 20 m2), SRO | C27: 2014 | D27: 10 | E27: 50000 | F27: 5000 | G27: kr.
B28: Pumpeinstallation Miljøklasse A (100-300 l/s) - Mek/EL | C28: 2014 | D28: 20 | E28: 500000 | F28: 25000 | G28: kr.
B29: Pumpeinstallation Miljøklasse A (100-300 l/s) - SRO | C29: 2014 | D29: 10 | E29: 150000 | F29: 15000 | G29: kr.
B30: Køretøjer, personbil | C30: 2014 | D30: 5 | E30: 350000 | F30: 70000 | G30: kr.
B31: Beluftningstanke, Konstruktioner | C31: 2015 | D31: 60 | E31: 10000000 | F31: 166666.6667 | G31: kr.
B32: Beluftningstanke, Mek/EL | C32: 2015 | D32: 20 | E32: 1000000 | F32: 50000 | G32: kr.
B33: Beluftningstanke, SRO | C33: 2015 | D33: 10 | E33: 100000 | F33: 10000 | G33: kr.
B34: Ledningsnet = Ø 200 mm | C34: 2015 | D34: 75 | E34: 15000000 | F34: 200000 | G34: kr.
B35: Ø 200 mm < Ledningsnet = Ø 500 mm | C35: 2015 | D35: 75 | E35: 7000000 | F35: 93333.33333 | G35: kr.
B36: Ø 500 mm < Ledningsnet = Ø 800 mm | C36: 2015 | D36: 75 | E36: 500000 | F36: 6666.666667 | G36: kr.
B37: Ø 800 mm < Ledningsnet = Ø 1000 mm | C37: 2015 | D37: 75 | E37: 200000 | F37: 2666.666667 | G37: kr.
B38: Strømpeforing = Ø 200 mm | C38: 2015 | D38: 50 | E38: 200000 | F38: 4000 | G38: kr.
B39: Ø 200 mm < Ledningsnet = Ø 500 mm | C39: 2015 | D39: 75 | E39: 50000 | F39: 666.6666667 | G39: kr.
B40: Ø 500 mm < Ledningsnet = Ø 800 mm | C40: 2015 | D40: 75 | E40: 150000 | F40: 2000 | G40: kr.
B41: Brønde | C41: 2015 | D41: 75 | E41: 3000000 | F41: 40000 | G41: kr.
B42: Tryksatte minipumpestationer (husstandssystemer) | C42: 2015 | D42: 30 | E42: 200000 | F42: 6666.666667 | G42: kr.
B43: Stik | C43: 2015 | D43: 75 | E43: 1000000 | F43: 13333.33333 | G43: kr.
B44: Pumpestationer i brønde (< 6,25 m2), Konstruktioner | C44: 2015 | D44: 50 | E44: 2000000 | F44: 40000 | G44: kr.
B45: Pumpestationer i brønde (< 6,25 m2), Mek/EL | C45: 2015 | D45: 20 | E45: 500000 | F45: 25000 | G45: kr.
B46: Pumpestationer m. overbygning (< 20 m2), Mek/EL | C46: 2015 | D46: 20 | E46: 150000 | F46: 7500 | G46: kr.
B47: Pumpestationer m. overbygning (< 20 m2), SRO | C47: 2015 | D47: 10 | E47: 25000 | F47: 2500 | G47: kr.
B48: Pumpeinstallation Miljøklasse A (100-300 l/s) - Mek/EL | C48: 2015 | D48: 20 | E48: 250000 | F48: 12500 | G48: kr.
B49: Pumpeinstallation Miljøklasse A (100-300 l/s) - SRO | C49: 2015 | D49: 10 | E49: 100000 | F49: 10000 | G49: kr.
B50: Jordbassin Klasse B | C50: 2015 | D50: 50 | E50: 5000000 | F50: 100000 | G50: kr.
B51: Køretøjer, personbil | C51: 2015 | D51: 5 | E51: 350000 | F51: 70000 | G51: kr.
B52: Tillæg for 2014 | F52: =SUMIF(C8:C51,"2014",F8:F51) -> 1077666.667 | G52: kr.
B53: Tillæg for 2015 | F53: =SUMIF(C8:C51,"2015",F8:F51) -> 863500 | G53: kr.
B54: Tillæg i alt | F54: =F52+F53 -> 1941166.667 | G54: kr.

Sheet 8. 1-1 omkostninger
A1: ='7. Planlagte investeringer'!A1 -> Frederikssund Spildevand A/S
B4: Fane 8. 1:1 omkostninger
B6: Tillæg for budgetterede 1:1 omkostninger i 2015
B7: Betaling til Forsyningssekretariatet | C7: 33000 | D7: kr.
B8: Spildevandsafgift | C8: 560000 | D8: kr.
B9: Selskabskat | C9: 3000000 | D9: kr.
B10: Tillæg i alt | C10: =SUM(C7:C9) -> 3593000 | D10: kr.
B15: Tillæg for budgetterede nødvendige udgifter til revisorerklæringer samt ordinært medlemskab af DANVA og FVD i 2015
B16: Betaling for ordinært medlemskab af DANVA/FVD | C16: 112800 | D16: kr.
B17: Betaling for revisorerklæringer | C17: 55000 | D17: kr.
B18: Tillæg i alt | C18: =SUM(C16:C17) -> 167800 | D18: kr.
B21: Korrektion af tillæg for faktiske 1:1 omkostninger (inkl. revisorerklæringer og ordinært medlemskab af DANVA/FVD) i 2013
B22: Selskabets faktiske 1:1 omkostninger mv. i 2013, jf. reguleringsregnskabet | C22: 797164 | D22: kr.
B23: Tillæg for budgetterede 1:1 omkostninger mv. i prisloft 2013 | C23: 636000 | D23: kr.
B24: Korrektion af tillæg for budgetterede 1:1 omkostninger mv. i 2013 | C24: =C22-C23 -> 161164 | D24: kr.

Sheet 9. Miljø- og servicemål
A1: ='8. 1-1 omkostninger'!A1 -> Frederikssund Spildevand A/S
B4: Fane 9. Driftsomkostninger til miljø- og servicemål
B6: Tillæg for budgetterede driftsomkostninger til miljø- og servicemål i 2015
B7: Bekæmpelse af lugtgener | C7: 113000 | D7: kr.
B8: Projekt Symbiose | C8: 0 | D8: kr.
B9: Tillæg i alt | C9: =SUM(C7:C8) -> 113000 | D9: kr.
B13: Korrektion af tillæg for faktiske driftsomkostninger til miljø- og servicemål i 2013
B14: Selskabets faktiske driftsomkostninger til miljø- og servicemål i 2013, jf. reguleringsregnskabet | C14: 0 | D14: kr.
B15: Tillæg for budgetterede driftsomkostninger til miljø- og servicemål i prisloft 2013 | C15: 0 | D15: kr.
B16: Korrektion af tillæg for budgetterede driftsomkostninger til miljø- og servicemål i 2013 | C16: =C14-C15 -> 0 | D16: kr.

Sheet 10. Klimatilpasning
A1: ='9. Miljø- og servicemål'!A1 -> Frederikssund Spildevand A/S
B4: Fane 10. Medfinansiering af klimatilpasningsprojekter
B7: Tillæg for budgetterede omkostninger til medfinansiering af klimatilpasningsprojekter i 2015
C8: 0 | D8: kr.
B9: Tillæg i alt | C9: =SUM(C8:C8) -> 0 | D9: kr.
B13: Korrektion af tillæg for faktiske omkostninger til medfinansiering af klimatilpasningsprojekter i 2013
B14: Selskabets faktiske driftsomkostninger til klimatilpasningsprojekter i 2013, jf. reguleringsregnskabet | C14: 0 | D14: kr.
B15: Tillæg for budgetterede driftsomkostninger til klimatilpasningsprojekter i prisloft 2013 | C15: 0 | D15: kr.
B16: Korrektion af tillæg for budgetterede omkostninger til klimatilpasningsprojekter i 2013 | C16: =C14-C15 -> 0 | D16: kr.

Sheet 11. Nettofinansielle poster
A1: ='10. Klimatilpasning'!A1 -> Frederikssund Spildevand A/S
B4: Fane 11. Nettofinansielle poster
B6: Tillæg for budgetterede nettofinansielle poster i 2015
B7: Budgetterede renteudgifter og gebyrer i 2015 | C7: 1300000 | D7: kr.
B8: Budgetterede renteindtægter i 2015 | C8: 30000 | D8: kr.
B9: Tillæg/fradrag i alt | C9: =C7-C8 -> 1270000 | D9: kr.
B13: Korrektion af tillæg for faktiske nettofinansielle poster i 2013
B14: Selskabets faktiske nettofinansielle poster i 2013, jf. reguleringsregnskabet | C14: 424569 | D14: kr.
B15: Tillæg for budgetterede nettofinansielle poster i prisloft 2013 | C15: 500000 | D15: kr.
B16: Korrektion af tillæg for budgetterede nettofinansielle poster i 2013 | C16: =C14-C15 -> -75431 | D16: kr.

Sheet 12. Over- eller underdækning (hidden)
A1: ='11. Nettofinansielle poster'!A1 -> Frederikssund Spildevand A/S
B4: Fane 12. Over- eller underdækning til og med 2010
B6: Tillæg/fradrag for over- eller underdækning til og med 2010
B7: Opgjort over- eller underdækning per 31. december 2010 | C7: 0 | D7: kr.
B8: Heraf beløb indregnet i prislofterne for 2012 - 2014 | C8: 0 | D8: kr.
B9: Endnu ikke indregnet over- eller underdækning | C9: =C7-C8 -> 0 | D9: kr.
B10: Resterende indregningsperiode (fastsat i prisloftet for 2012) | C10: 0 | D10: år
B11: Tillæg/fradrag i alt | C11: =IF(C7=0,0,C9/C10) -> 0 | D11: kr.

Sheet 13. Kontrol med indtægtsrammen
A1: ='12. Over- eller underdækning'!A1 -> Frederikssund Spildevand A/S
B4: Fane 13. Korrektion for overholdelse af indtægtsrammen i prisloftet for 2013
B6: Samlet opgørelse vedrørende overholdelse af indtægtsrammen i prisloftet for 2013
B7: Indtægtsramme i prisloftet for 2013 | E7: 81166811.99 | F7: kr.
B8: Ikke anvendt likviditet vedrørende investeringer i 2013
B9: Tillæg for historiske investeringer | C9: 35915972.25 | D9: kr.
B10: Tillæg for gennemførte investeringer i 2011 | C10: 2822827 | D10: kr.
B11: Korrektion af tillæg for planlagte investeringer i 2011 | C11: 923374 | D11: kr.
B12: Tillæg for planlagte investeringer i 2012 og 2013 | C12: 3666990 | D12: kr.
B13: Indtægter fra tilslutningsbidrag | C13: 758091 | D13: kr.
B14: Indtægter fra salg af anlægsaktiver | C14: 7000 | D14: kr.
B15: Erstatninger vedr. anlægsaktiver mv. | C15: 0 | D15: kr.
B16: Ekstraordinær effektiviseringsgevinst anvendt til investeringer | C16: 6620990 | D16: kr.
B17: Udgifter til investeringer | C17: -50715244 | D17: kr.
B18: Ikke anvendt likviditet vedr. investeringer i alt | C18: =SUM(C9:C17) -> 0.2483077049 | D18: kr. | E18: =IF(C18<0,0,-C18) -> -0.2483077049 | F18: kr.
B19: Ekstraordinære effektiviseringsgevinster anvendt til takstnedsættelse
B20: Ekstraordinær effektiviseringsgevinst anvendt til takstnedsættelse | C20: 0 | D20: kr. | E20: =-C20 -> 0 | F20: kr.
B21: Korrektion af ikke opkrævet tillæg fra 2011 i prisloft 2013
B22: Korrektion af ikke opkrævet tillæg fra 2011 i prisloft 2013 | C22: 0 | D22: kr. | E22: =-C22 -> 0 | F22: kr.
B23: Indtægter fra primære aktiviteter mv.
B24: Indtægter fra kubikmetertakster, faste takster, særbidrag, målergebyrer samt andre takster og gebyrer | C24: 80781527 | D24: kr.
B25: Andre indtægter i prisloftåret, som selskabet har opnået i forbindelse med eller som følge af selskabets primære aktiviteter | C25: 0 | D25: kr.
B26: Indtægter fra primære aktiviteter mv. i alt | C26: =SUM(C24:C25) -> 80781527 | D26: kr. | E26: =-C26 -> -80781527 | F26: kr.
B27: Tillæg/fradrag i prisloftet for 2015 i alt | E27: =E7+E18+E20+E22+E26 -> 385284.7434 | F27: kr.
B31: Oversigt over ekstraordinære effektiviseringsgevinster
C33: 2012 | E33: 2013 | G33: 2014 | I33: 2015 | K33: 2016
B34: Indhentet ekstraordinær effektiviseringsgevinst | C34: 0 | D34: kr. | E34: 6620990 | F34: kr. | H34: kr. | J34: kr. | L34: kr.
B35: Gevinst anvendt til investeringer | C35: 0 | D35: kr. | E35: 6620990 | F35: kr. | H35: kr. | J35: kr. | L35: kr.
B36: Gevinst anvendt til takstnedsættelse | C36: 0 | D36: kr. | E36: 0 | F36: kr. | H36: kr. | J36: kr. | L36: kr.
B37: Korrektion for effektiviseringsgevinst der ikke er anvendt inden 4 år | C37: 0 | D37: kr. | E37: 0 | F37: kr. | H37: kr. | J37: kr. | K37: =IF(C38>SUM(C35:I36),C38-SUM(E35:I36),0)*-1 -> 0 | L37: kr.
B38: Resterende gevinst | C38: =C34-C35-C36 -> 0 | D38: kr. | E38: =C38+E34-E35-E36 -> 0 | F38: kr. | G38: =E38+G34-G35-G36 -> 0 | H38: kr. | I38: =G38+I34-I35-I36 -> 0 | J38: kr. | K38: =I38-K34-K35-K36+K37 -> 0 | L38: kr.
